fUST/lending_fUST_20251013
["ID","MTS","AMOUNT","RATE_DAILY","PERIOD"]
[391074968,1760303709368,1511.0,0.0002,10]
[391074969,1760303717055,200.0,0.00027397,120]
[391074970,1760303728358,731.75,0.0002041,2]
[391074971,1760303786933,-168.0315653,0.00020971,2]
[391074972,1760303803705,-259.46948852,0.00020971,2]
[391074973,1760303806024,-181.23276224,0.00020971,2]
[391074974,1760303808573,-263.35740283,0.00020971,2]
[391074975,1760303809709,722.44,0.00020416,2]
[391074976,1760303812487,-205.04921337,0.00020971,2]
[391074977,1760303889438,713.24,0.00020088,2]
[391074978,1760303969423,704.16,0.00020072,2]
[391074979,1760304044576,-202.85956774,0.00020971,2]
[391074980,1760304044597,-141.24857146,0.00020971,2]
[391074981,1760304049876,695.2,0.00020063,2]
[391074982,1760304050335,-27.38325276,0.00020971,2]
[391074988,1760304129440,686.35,0.00020072,2]
[391074990,1760304212520,677.62,0.00020069,2]
[391074991,1760304292475,668.99,0.00020067,2]
[391074995,1760304376671,660.48,0.00020068,2]
[391074997,1760304457124,652.07,0.00020071,2]
[391074998,1760304513625,6599.73349448,0.0002,2]
[391074999,1760304513647,10000.01,0.0002,2]
[391075000,1760304513668,5976.58113136,0.0002,2]
[391075001,1760304537543,643.78,0.00020141,2]
[391075002,1760304617677,635.58,0.00020071,2]
[391075043,1760304631748,-389.0,0.00021002,6]
[391075044,1760304631760,-150.61765958,0.00021002,6]
[391075045,1760304631769,-200.0,0.00021571,2]
[391075047,1760304631779,-193.92659785,0.00021571,2]
[391075049,1760304631788,-1023.0,0.00021813,2]
[391075051,1760304631797,-1271.16,0.00021895,2]
[391075053,1760304631806,-666.0,0.00022139,2]
[391075054,1760304631816,-219.22137149,0.00022171,2]
[391075055,1760304631825,-1020.0,0.00022363,2]
[391075056,1760304631835,-1020.0,0.00022608,2]
[391075057,1760304631844,-244.51614512,0.00022771,2]
[391075059,1760304631854,-168.0,0.00022905,2]
[391075061,1760304631864,-1508.0,0.00022969,2]
[391075063,1760304631873,-297.0722547,0.00022978,2]
[391075065,1760304631882,-162.9132687,0.00022978,2]
[391075067,1760304631892,-1200.0,0.00023076,2]
[391075069,1760304631901,-300.0,0.00023076,2]
[391075071,1760304631909,-300.0,0.00023077,2]
[391075072,1760304631918,-300.0,0.00023077,2]
[391075074,1760304631927,-300.0,0.00023077,2]
[391075076,1760304631937,-297.9509383,0.00023078,2]
[391075078,1760304631946,-162.9132687,0.00023078,2]
[391075080,1760304631955,-588.537303,0.00023078,2]
[391075083,1760304631964,-2393.70188686,0.00023085,2]
[391075086,1760304631973,-179.69451932,0.00023353,2]
[391075088,1760304631982,-269.81091875,0.00023371,2]
[391075090,1760304631991,-379.0,0.00023402,2]
[391075092,1760304632000,-10572.96241187,0.00023455,2]
[391075094,1760304632009,-330.54241822,0.00023455,2]
[391075096,1760304632018,-151.0,0.00023455,2]
[391075098,1760304632026,-151.0,0.00023455,2]
[391075100,1760304632035,-151.0,0.00023455,2]
[391075102,1760304632044,-436.61639806,0.00023469,2]
[391075104,1760304632053,-242.56466559,0.00023469,2]
[391075106,1760304632062,-776.20692988,0.00023469,2]
[391075108,1760304632071,-1211.61050461,0.00023469,2]
[391075110,1760304632080,-2007.610538,0.00023499,2]
[391075112,1760304632090,-1193.342098,0.00023533,2]
[391075114,1760304632100,-168.0,0.00023541,2]
[391075116,1760304632110,-1000.0,0.00023566,5]
[391075118,1760304632119,-982.60871731,0.00023569,2]
[391075120,1760304632127,-168.0,0.00023629,2]
[391075122,1760304632136,-41656.19999999,0.00023699,2]
[391075124,1760304632145,-1906.74,0.0002372,2]
[391075126,1760304632154,-311.83,0.0002379,10]
[391075128,1760304632163,-259.86,0.0002379,10]
[391075131,1760304632181,-216.55,0.0002379,10]
[391075133,1760304632192,-180.45,0.0002379,10]
[391075135,1760304632203,-168.0,0.00023797,2]
[391075137,1760304632212,-1000.0,0.00023799,2]
[391075139,1760304632221,-212.8152234,0.00023799,2]
[391075141,1760304632230,-350.253822,0.00023799,2]
[391075143,1760304632239,-31958.68828973,0.000238,2]
[391075144,1760304632251,-534.31381174,0.000238,2]
[391075145,1760304632263,-4661.5862867,0.000238,2]
[391075198,1760304637863,-222.73827502,0.00023683,2]
[391075199,1760304637873,-500.0,0.00023683,2]
[391075200,1760304637884,-500.0,0.00023683,2]
[391075201,1760304637894,-624.21982383,0.00023683,2]
[391075202,1760304637904,-16231.77253313,0.000238,2]
[391075203,1760304637913,-162.9132687,0.000238,2]
[391075204,1760304637923,-300.0,0.00023818,20]
[391075205,1760304637932,-300.0,0.00023818,20]
[391075207,1760304637942,-300.0,0.00023818,20]
[391075209,1760304637951,-300.0,0.00023818,20]
[391075210,1760304637961,-300.0,0.00023818,20]
[391075211,1760304637970,-300.0,0.00023818,20]
[391075212,1760304637979,-300.0,0.00023818,20]
[391075213,1760304637988,-300.0,0.00023818,20]
[391075214,1760304637998,-300.0,0.00023818,20]
[391075215,1760304638007,-300.0,0.00023818,20]
[391075216,1760304638018,-300.0,0.00023818,20]
[391075217,1760304638027,-300.0,0.00023818,20]
[391075218,1760304638037,-300.0,0.00023818,20]
[391075219,1760304638046,-300.0,0.00023818,20]
[391075220,1760304638057,-300.0,0.00023818,20]
[391075221,1760304638067,-151.27512248,0.00023818,20]
[391075222,1760304638077,-151.0,0.00023818,2]
[391075223,1760304638088,-2274.91191449,0.00023818,2]
[391075224,1760304638098,-500.0,0.00023839,2]
[391075225,1760304638109,-424.213,0.00023845,5]
[391075226,1760304638119,-184.71834504,0.00023845,5]
[391075227,1760304638129,-168.0,0.00023853,2]
[391075228,1760304638139,-417.15472785,0.00023877,2]
[391075229,1760304638148,-160.0,0.00023877,2]
[391075230,1760304638157,-160.0,0.00023877,2]
[391075231,1760304638167,-2088.78532203,0.00023877,2]
[391075232,1760304638176,-168.0,0.00023889,2]
[391075233,1760304638185,-398.52,0.0002389,3]
[391075234,1760304638195,-597.82,0.0002389,3]
[391075235,1760304638204,-163.99016729,0.000239,2]
[391075236,1760304638213,-850.03637906,0.000239,2]
[391075237,1760304638223,-175.97057363,0.000239,2]
[391075238,1760304638232,-3022.17396173,0.000239,2]
[391075239,1760304638242,-254.90021181,0.000239,2]
[391075240,1760304638251,-217.23489935,0.000239,2]
[391075241,1760304638260,-392.49619994,0.000239,2]
[391075242,1760304638270,-254.30655552,0.000239,2]
[391075243,1760304638279,-2694.01428397,0.000239,2]
[391075244,1760304638289,-160.0,0.00023955,2]
[391075245,1760304638298,-402.2877588,0.00023955,2]
[391075246,1760304638308,-295.10569239,0.00023971,2]
[391075247,1760304638317,-199.26,0.0002399,3]
[391075248,1760304638326,-8735.76,0.00024,2]
[391075249,1760304638335,-7121.61062064,0.00024073,2]
[391075250,1760304638346,-166.0,0.00024096,3]
[391075251,1760304638355,-172.0,0.00024096,3]
[391075252,1760304638364,-330.0,0.00024096,3]
[391075253,1760304638373,-330.0,0.00024096,3]
[391075254,1760304638383,-330.0,0.00024096,3]
[391075255,1760304638397,-330.0,0.00024096,3]
[391075256,1760304638406,-330.0,0.00024096,3]
[391075257,1760304638415,-330.0,0.00024096,3]
[391075258,1760304638424,-330.0,0.00024096,3]
[391075259,1760304638435,-330.0,0.00024096,3]
[391075260,1760304638444,-330.0,0.00024096,3]
[391075261,1760304638454,-330.0,0.00024096,3]
[391075262,1760304638463,-330.0,0.00024096,3]
[391075263,1760304638473,-330.0,0.00024096,3]
[391075264,1760304638483,-330.0,0.00024096,3]
[391075265,1760304638492,-330.0,0.00024096,3]
[391075266,1760304638501,-330.0,0.00024096,3]
[391075267,1760304638511,-330.0,0.00024096,3]
[391075268,1760304638521,-330.0,0.00024096,3]
[391075269,1760304638530,-330.0,0.00024096,3]
[391075270,1760304638539,-330.0,0.00024096,3]
[391075271,1760304638549,-330.0,0.00024096,3]
[391075272,1760304638558,-330.0,0.00024096,3]
[391075273,1760304638567,-330.0,0.00024096,3]
[391075274,1760304638577,-330.0,0.00024096,3]
[391075275,1760304638588,-330.0,0.00024096,3]
[391075276,1760304638597,-330.0,0.00024096,3]
[391075277,1760304638607,-330.0,0.00024096,3]
[391075278,1760304638616,-330.0,0.00024096,3]
[391075279,1760304638626,-330.0,0.00024096,3]
[391075280,1760304638636,-330.0,0.00024096,3]
[391075281,1760304638646,-330.0,0.00024096,3]
[391075282,1760304638657,-330.0,0.00024096,3]
[391075283,1760304638667,-330.0,0.00024096,3]
[391075284,1760304638677,-330.0,0.00024096,3]
[391075285,1760304638686,-330.0,0.00024096,3]
[391075286,1760304638697,-330.0,0.00024096,3]
[391075287,1760304638707,-330.0,0.00024096,3]
[391075288,1760304638718,-330.0,0.00024096,3]
[391075289,1760304638728,-330.0,0.00024096,3]
[391075290,1760304638737,-330.0,0.00024096,3]
[391075291,1760304638747,-330.0,0.00024096,3]
[391075292,1760304638757,-330.0,0.00024096,3]
[391075293,1760304638766,-330.0,0.00024096,3]
[391075294,1760304638775,-330.0,0.00024096,3]
[391075295,1760304638784,-330.0,0.00024096,3]
[391075296,1760304638794,-330.0,0.00024096,3]
[391075297,1760304638803,-330.0,0.00024096,3]
[391075298,1760304638814,-330.0,0.00024096,3]
[391075299,1760304638823,-330.0,0.00024096,3]
[391075300,1760304638833,-330.0,0.00024096,3]
[391075301,1760304638847,-330.0,0.00024096,3]
[391075302,1760304638857,-330.0,0.00024096,3]
[391075303,1760304638867,-330.0,0.00024096,3]
[391075304,1760304638878,-330.0,0.00024096,3]
[391075305,1760304638889,-330.0,0.00024096,3]
[391075306,1760304638899,-330.0,0.00024096,3]
[391075307,1760304639068,-330.0,0.00024096,3]
[391075308,1760304639118,-330.0,0.00024096,3]
[391075309,1760304639128,-330.0,0.00024096,3]
[391075310,1760304639138,-330.0,0.00024096,3]
[391075311,1760304639148,-330.0,0.00024096,3]
[391075312,1760304639157,-330.0,0.00024096,3]
[391075313,1760304639167,-269.41020079,0.00024096,3]
[391075314,1760304639177,-163.99016729,0.000241,2]
[391075315,1760304639186,-850.03637906,0.000241,2]
[391075316,1760304639195,-3022.17396173,0.000241,2]
[391075317,1760304639205,-254.90021181,0.000241,2]
[391075318,1760304639215,-392.49619994,0.000241,2]
[391075319,1760304639225,-254.30655552,0.000241,2]
[391075320,1760304639235,-2694.01428397,0.000241,2]
[391075321,1760304639244,-128079.96054072,0.00024142,2]
[391075322,1760304639309,-905.68,0.00024142,2]
[391075323,1760304639320,-6101.08706467,0.00024142,2]
[391075334,1760304639494,-573.23121683,0.00024142,2]
[391075410,1760304643558,-3e-08,0.0002412,3]
[391075413,1760304643569,-329.99999997,0.0002412,3]
[391075415,1760304643578,-330.0,0.0002412,3]
[391075417,1760304643587,-150.38,0.00024132,10]
[391075418,1760304643599,-188.91134913,0.00024142,2]
[391075421,1760304643609,-4775.06594425,0.00024142,2]
[391075423,1760304643620,-583.32430125,0.00024142,2]
[391075478,1760304644126,-29462.48060783,0.00024142,2]
[391075480,1760304644136,-160.0,0.0002416,2]
[391075482,1760304644145,-500.0,0.00024173,2]
[391075484,1760304644154,-500.0,0.00024173,2]
[391075485,1760304644163,-420.0,0.00024194,2]
[391075486,1760304644172,-600.0,0.00024275,20]
[391075487,1760304644180,-420.0,0.000244,2]
[391075488,1760304644190,-163.99016729,0.000244,2]
[391075489,1760304644198,-850.03637906,0.000244,2]
[391075490,1760304644207,-3022.17396173,0.000244,2]
[391075492,1760304644216,-254.90021181,0.000244,2]
[391075493,1760304644225,-392.49619994,0.000244,2]
[391075495,1760304644235,-254.30655552,0.000244,2]
[391075496,1760304644244,-2694.01428397,0.000244,2]
[391075498,1760304644253,-2088.78532203,0.00024418,3]
[391075500,1760304644262,-402.2877588,0.00024418,3]
[391075501,1760304644271,-160.0,0.00024418,3]
[391075503,1760304644281,-761.0,0.000245,2]
[391075504,1760304644291,-1400.0,0.0002452,2]
[391075506,1760304644300,-268.60855356,0.00024556,2]
[391075507,1760304644310,-320.40046602,0.00024571,2]
[391075508,1760304644319,-850.03637906,0.000246,2]
[391075509,1760304644328,-3022.17396173,0.000246,2]
[391075510,1760304644338,-254.90021181,0.000246,2]
[391075511,1760304644350,-254.30655552,0.000246,2]
[391075512,1760304644359,-2694.01428397,0.000246,2]
[391075513,1760304644368,-392.49619994,0.000246,2]
[391075514,1760304644377,-380.0,0.00024658,2]
[391075515,1760304644387,-772.0,0.0002468,7]
[391075516,1760304644398,-227.5,0.000247,2]
[391075517,1760304644408,-260.0,0.00024708,2]
[391075519,1760304644417,-555.26881341,0.00024721,2]
[391075521,1760304644428,-444.73118659,0.00024721,2]
[391075523,1760304644438,-1000.0,0.00024721,2]
[391075525,1760304644447,-168.0,0.00024751,2]
[391075528,1760304644456,-850.03637906,0.000248,2]
[391075529,1760304644465,-3022.17396173,0.000248,2]
[391075531,1760304644476,-254.90021181,0.000248,2]
[391075534,1760304644493,-254.30655552,0.000248,2]
[391075536,1760304644502,-2694.01428397,0.000248,2]
[391075538,1760304644511,-392.49619994,0.000248,2]
[391075540,1760304644520,-9066.4360322,0.000248,2]
[391075541,1760304644529,-32493.415898,0.00024801,2]
[391075543,1760304644538,-489.65021963,0.0002487,2]
[391075545,1760304644547,-500.0,0.00024872,9]
[391075547,1760304644557,-500.0,0.00024873,2]
[391075549,1760304644566,-500.0,0.00024873,2]
[391075552,1760304644575,-7121.61062064,0.00024873,2]
[391075553,1760304644584,-248.22845091,0.0002488,9]
[391075556,1760304644599,-251.77154909,0.0002488,9]
[391075558,1760304644608,-815.02028794,0.00024889,2]
[391075560,1760304644617,-2266.60900805,0.0002489,2]
[391075562,1760304644626,-200.0,0.00024899,2]
[391075564,1760304644636,-59286.31,0.000249,7]
[391075566,1760304644645,-2088.78532203,0.000249,7]
[391075568,1760304644655,-402.2877588,0.000249,7]
[391075570,1760304644664,-417.15472785,0.000249,7]
[391075572,1760304644673,-160.0,0.000249,7]
[391075574,1760304644682,-3201.79050764,0.000249,2]
[391075576,1760304644693,-25555.1765,0.000249,2]
[391075578,1760304644704,-169304.16102028,0.000249,2]
[391075715,1760304645854,-162.9132687,0.000239,2]
[391075717,1760304645863,-123559.3135813,0.000249,2]
[391075719,1760304645873,-309.25713735,0.000249,2]
[391075725,1760304645913,-8219.99999981,0.000249,2]
[391078235,1760304698174,587.05,0.00020524,2]
[391078236,1760304708878,182.0,0.0002074,3]
[391078237,1760304777798,629.59,0.00020016,2]
[391078238,1760304858428,621.58,0.00019913,2]
[391078240,1760304938186,613.67,0.00019826,2]
[391078241,1760304954223,151.0,0.000181,2]
[391078242,1760304955371,151.0,0.000191,2]
[391078243,1760304979435,300.0,0.000199,2]
[391078244,1760305017853,605.86,0.00019807,2]
[391078245,1760305039719,300.0,0.000191,2]
[391078246,1760305179268,598.15,0.00019821,2]
[391078248,1760305234866,470.00442883,0.0002,2]
[391078249,1760305258361,590.53,0.00019918,2]
[391078251,1760305337971,583.02,0.00019912,2]
[391078252,1760305355512,1357.0,0.00027397,120]
[391078253,1760305418857,575.6,0.00019774,2]
[391078254,1760305497389,568.27,0.00019753,2]
[391078256,1760305579872,561.04,0.00019773,2]
[391078257,1760305660606,553.9,0.00019749,2]
[391078258,1760305741031,78.38557117,0.00019748,2]
[391078259,1760305741054,468.46442883,0.00019748,2]
[391078260,1760305821077,539.89,0.00019756,2]
[391078302,1760305832035,-176.772572,0.00021223,2]
[391078304,1760305832044,-1079.78,0.00021552,2]
[391078306,1760305832053,-166.39162759,0.00021729,2]
[391078308,1760305832062,-300.0,0.000218,2]
[391078310,1760305832071,-414.0,0.000218,2]
[391078312,1760305832080,-5000.0,0.00021801,2]
[391078314,1760305832089,-5000.0,0.00021801,2]
[391078316,1760305832098,-5000.0,0.00021801,2]
[391078318,1760305832107,-180.00641475,0.000222,2]
[391078320,1760305832117,-233.71,0.00022223,10]
[391078322,1760305832126,-198.81725516,0.00022232,2]
[391078324,1760305832135,-460.2985284,0.00022232,2]
[391078326,1760305832144,-50000.0,0.00022233,2]
[391078328,1760305832153,-155.0,0.00022234,2]
[391078330,1760305832162,-500.0,0.00022235,2]
[391078332,1760305832171,-300.0,0.00022236,20]
[391078335,1760305832181,-300.0,0.00022236,20]
[391078337,1760305832190,-300.0,0.00022236,20]
[391078338,1760305832199,-300.0,0.00022236,20]
[391078341,1760305832209,-300.0,0.00022236,20]
[391078342,1760305832218,-300.0,0.00022236,20]
[391078344,1760305832228,-300.0,0.00022236,20]
[391078346,1760305832237,-300.0,0.00022236,20]
[391078348,1760305832247,-300.0,0.00022236,20]
[391078351,1760305832256,-300.0,0.00022236,20]
[391078353,1760305832266,-300.0,0.00022236,20]
[391078355,1760305832276,-300.0,0.00022236,20]
[391078356,1760305832286,-300.0,0.00022236,20]
[391078359,1760305832295,-300.0,0.00022236,20]
[391078361,1760305832304,-300.0,0.00022236,20]
[391078362,1760305832314,-1910.01735746,0.00022287,6]
[391078364,1760305832323,-191.35037173,0.00022329,2]
[391078367,1760305832333,-500.0,0.00022509,2]
[391078369,1760305832343,-600.0,0.0002268,20]
[391078370,1760305832352,-500.0,0.00022783,2]
[391078372,1760305832361,-39206.69351089,0.0002289,2]
[391078374,1760305832371,-216.30911587,0.00022929,2]
[391078376,1760305832381,-503.41186619,0.00022969,2]
[391078378,1760305832391,-500.0,0.00022973,2]
[391078380,1760305832400,-1000.0,0.00022976,2]
[391078382,1760305832409,-1000.0,0.00022976,2]
[391078384,1760305832418,-151.0,0.00022976,2]
[391078386,1760305832428,-1000.0,0.00022976,2]
[391078388,1760305832436,-500.0,0.00022976,2]
[391078390,1760305832446,-269.14409156,0.00022976,2]
[391078392,1760305832456,-544.41282907,0.00022976,2]
[391078394,1760305832464,-151.0,0.00022976,2]
[391078396,1760305832474,-1000.0,0.00022976,2]
[391078398,1760305832483,-250.0,0.00022976,2]
[391078400,1760305832492,-500.0,0.00022976,2]
[391078402,1760305832503,-151.0,0.00022976,2]
[391078404,1760305832512,-1000.0,0.00022976,2]
[391078406,1760305832521,-250.0,0.00022976,2]
[391078408,1760305832530,-151.0,0.00022976,2]
[391078410,1760305832542,-1000.0,0.00022976,2]
[391078412,1760305832551,-277.8792947,0.00022976,2]
[391078414,1760305832561,-151.0,0.00022976,2]
[391078416,1760305832570,-151.0,0.00022976,2]
[391078418,1760305832580,-151.0,0.00022976,2]
[391078420,1760305832588,-151.0,0.00022976,2]
[391078422,1760305832598,-500.0,0.00022976,2]
[391078424,1760305832607,-500.0,0.00022976,2]
[391078426,1760305832617,-500.0,0.00022976,2]
[391078428,1760305832626,-151.0,0.00022976,2]
[391078430,1760305832635,-500.0,0.00022976,2]
[391078432,1760305832644,-500.0,0.00022976,2]
[391078434,1760305832654,-500.0,0.00022976,2]
[391078436,1760305832664,-500.0,0.00022976,2]
[391078438,1760305832673,-500.0,0.00022976,2]
[391078440,1760305832683,-198.0,0.00022977,2]
[391078442,1760305832692,-151.0,0.00022977,2]
[391078444,1760305832701,-151.0,0.00022977,2]
[391078446,1760305832710,-198.0,0.00022978,2]
[391078448,1760305832720,-500.0,0.00022978,2]
[391078450,1760305832730,-897.0,0.00022978,2]
[391078452,1760305832739,-151.36530386,0.00022978,2]
[391078454,1760305832749,-500.0,0.00022978,2]
[391078456,1760305832758,-151.0,0.00022978,2]
[391078457,1760305832767,-151.27512248,0.00022978,2]
[391078459,1760305832780,-152.15912811,0.00022978,2]
[391078461,1760305832789,-466.65,0.0002298,3]
[391078463,1760305832798,-1313.3,0.0002298,3]
[391078465,1760305832807,-656.65,0.0002298,3]
[391078467,1760305832816,-328.33,0.0002298,3]
[391078469,1760305832827,-164.16,0.0002298,3]
[391078470,1760305832836,-492.51,0.0002298,3]
[391078473,1760305832848,-658.57620859,0.00022988,2]
[391078474,1760305832858,-100000.0,0.0002299,2]
[391078476,1760305832868,-500.0,0.0002299,2]
[391078478,1760305832878,-151.0,0.0002299,2]
[391078480,1760305832887,-151.0,0.0002299,2]
[391078482,1760305832896,-500.0,0.0002299,2]
[391078484,1760305832905,-500.0,0.0002299,2]
[391078485,1760305832914,-151.0,0.0002299,2]
[391078487,1760305832923,-151.0,0.0002299,2]
[391078489,1760305832932,-260.68741844,0.0002299,2]
[391078491,1760305832942,-151.0,0.0002299,2]
[391078493,1760305832952,-500.0,0.0002299,2]
[391078495,1760305832961,-151.0,0.0002299,2]
[391078497,1760305832970,-500.0,0.0002299,2]
[391078499,1760305832979,-151.0,0.0002299,2]
[391078501,1760305832987,-151.0,0.0002299,7]
[391078503,1760305832997,-151.0,0.0002299,7]
[391078505,1760305833007,-151.0,0.0002299,7]
[391078507,1760305833016,-151.0,0.0002299,7]
[391078509,1760305833025,-151.0,0.0002299,7]
[391078511,1760305833034,-202.225034,0.0002299,7]
[391078513,1760305833043,-202.225034,0.0002299,7]
[391078515,1760305833053,-202.225034,0.0002299,7]
[391078517,1760305833063,-202.225034,0.0002299,7]
[391078519,1760305833071,-151.0,0.0002299,7]
[391078521,1760305833080,-151.0,0.0002299,7]
[391078523,1760305833089,-251.015786,0.0002299,7]
[391078525,1760305833099,-251.015786,0.0002299,7]
[391078526,1760305833108,-251.015786,0.0002299,7]
[391078528,1760305833118,-251.015786,0.0002299,7]
[391078530,1760305833128,-151.0,0.0002299,7]
[391078532,1760305833138,-151.0,0.0002299,7]
[391078534,1760305833147,-151.0,0.0002299,7]
[391078536,1760305833157,-151.0,0.0002299,7]
[391078538,1760305833166,-151.0,0.0002299,7]
[391078540,1760305833175,-151.0,0.0002299,7]
[391078542,1760305833184,-151.0,0.0002299,7]
[391078544,1760305833194,-275.681012,0.0002299,7]
[391078546,1760305833203,-151.0,0.0002299,7]
[391078548,1760305833213,-151.0,0.0002299,7]
[391078550,1760305833223,-151.0,0.0002299,7]
[391078552,1760305833233,-151.0,0.0002299,7]
[391078554,1760305833243,-151.0,0.0002299,7]
[391078556,1760305833252,-235.842284,0.0002299,7]
[391078558,1760305833261,-235.842284,0.0002299,7]
[391078560,1760305833271,-235.842284,0.0002299,7]
[391078562,1760305833281,-235.842284,0.0002299,7]
[391078564,1760305833291,-151.0,0.0002299,7]
[391078566,1760305833302,-151.0,0.0002299,7]
[391078568,1760305833312,-151.0,0.0002299,7]
[391078570,1760305833321,-151.0,0.0002299,7]
[391078572,1760305833332,-151.0,0.0002299,7]
[391078574,1760305833342,-151.0,0.0002299,7]
[391078576,1760305833351,-151.0,0.0002299,7]
[391078578,1760305833361,-151.0,0.0002299,7]
[391078580,1760305833371,-151.0,0.0002299,7]
[391078582,1760305833380,-151.0,0.0002299,7]
[391078584,1760305833390,-151.0,0.0002299,7]
[391078586,1760305833399,-151.0,0.0002299,7]
[391078588,1760305833409,-160.0,0.00023,2]
[391078590,1760305833419,-500.0,0.00023033,2]
[391078591,1760305833428,-897.0,0.00023033,2]
[391078593,1760305833437,-500.0,0.00023033,2]
[391078596,1760305833447,-500.0,0.00023045,2]
[391078597,1760305833456,-151.0,0.00023045,2]
[391078599,1760305833466,-242.46671906,0.00023045,2]
[391078601,1760305833475,-500.0,0.00023045,2]
[391078603,1760305833484,-242.3545318,0.00023045,2]
[391078613,1760305833571,-320.4342414,0.00023045,2]
[391078615,1760305833580,-151.0,0.00023045,2]
[391078617,1760305833590,-152.02473839,0.00023045,2]
[391078619,1760305833600,-151.0,0.00023045,2]
[391078621,1760305833609,-500.0,0.00023045,2]
[391078623,1760305833620,-151.0,0.00023045,2]
[391078625,1760305833629,-500.0,0.00023045,2]
[391078627,1760305833638,-151.0,0.00023045,2]
[391078629,1760305833647,-500.0,0.00023057,2]
[391078631,1760305833657,-500.0,0.00023088,2]
[391078633,1760305833666,-897.0,0.00023088,2]
[391078635,1760305833676,-255.0,0.00023088,2]
[391078637,1760305833685,-500.7513023,0.000231,2]
[391078639,1760305833695,-252.56642719,0.000231,2]
[391078641,1760305833704,-500.0,0.000231,2]
[391078643,1760305833713,-151.0,0.000231,2]
[391078645,1760305833723,-151.0,0.000231,2]
[391078647,1760305833732,-500.0,0.000231,2]
[391078649,1760305833741,-151.0,0.000231,2]
[391078651,1760305833751,-500.0,0.000231,2]
[391078665,1760305833887,-151.0,0.000231,2]
[391078667,1760305833897,-500.0,0.00023142,2]
[391078669,1760305833906,-897.0,0.00023142,2]
[391078671,1760305833916,-500.0,0.00023154,2]
[391078673,1760305833926,-151.0,0.00023154,2]
[391078675,1760305833935,-197.999999,0.00023154,2]
[391078677,1760305833945,-350.55682446,0.00023154,2]
[391078679,1760305833955,-151.0,0.00023154,2]
[391078681,1760305833966,-500.0,0.00023154,2]
[391078683,1760305833977,-153.00574336,0.00023154,2]
[391078684,1760305833988,-266.88335654,0.00023197,2]
[391078686,1760305833998,-897.0,0.00023197,2]
[391078688,1760305834008,-296.40420351,0.00023209,2]
[391078690,1760305834018,-262.16537658,0.00023209,2]
[391078692,1760305834027,-151.0,0.00023209,2]
[391078694,1760305834037,-500.0,0.00023209,2]
[391078696,1760305834047,-897.0,0.00023252,2]
[391078697,1760305834056,-198.0,0.00023264,2]
[391078699,1760305834066,-500.0,0.00023264,2]
[391078701,1760305834076,-897.0,0.00023307,2]
[391078703,1760305834085,-442.45263202,0.00023319,2]
[391078705,1760305834095,-1619.66,0.00023348,2]
[391078707,1760305834105,-179.67658215,0.00023353,2]
[391078709,1760305834115,-897.0,0.00023362,2]
[391078711,1760305834124,-897.0,0.00023416,2]
[391078712,1760305834133,-897.0,0.00023471,2]
[391078714,1760305834143,-151.0,0.00023499,7]